bitfinex/quotes_ETHUSD_20250916
["timestamp","ask_amount","ask_price","bid_price","bid_amount"]
[1758030337300,0.23032319,4452.2,4450.1,0.01]
[1758030337488,0.20224719,4452.1,4450.1,0.01]
[1758030337711,0.23032445,4452.0,4450.2,0.4587]
[1758030337994,0.20224719,4451.9,4450.2,0.4587]
[1758030338209,0.23032572,4451.8,4450.4,2.24697485]
[1758030338372,0.20224719,4451.7,4450.5,2.24693666]
[1758030338563,0.20241456,4451.6,4450.2,0.4587]
[1758030338768,0.20241456,4451.5,4450.9,0.4587]
[1758030338958,0.20241423,4453.3,4451.2,0.4587]
[1758030338959,0.20241456,4451.4,4451.2,0.4587]
[1758030339166,0.4653,4453.7,4451.3,0.4587]
[1758030339167,0.2245632,4453.1,4451.3,0.4587]
[1758030339397,0.23062634,4453.0,4451.4,0.463]
[1758030339692,0.20255538,4452.9,4451.5,2.70512912]
[1758030339859,0.20255538,4452.8,4451.6,0.463]
[1758030340060,0.20255538,4452.7,4451.6,0.463]
[1758030340360,0.20255538,4452.6,4452.0,2.24613937]
[1758030340572,0.20255538,4452.5,4452.1,0.463]
[1758030340911,0.112,4452.6,4452.2,0.9217]
[1758030341131,0.112,4452.6,4451.3,16.15983227]
[1758030341132,0.20263525,4452.5,4452.3,0.9217]
[1758030341339,0.20263525,4452.4,4452.3,2.24603014]
[1758030341560,0.02806718,4453.6,4451.3,16.15983227]
[1758030341761,0.20274112,4453.5,4451.3,16.15983227]
[1758030342031,0.01,4453.9,4451.4,0.9217]
[1758030342239,0.01,4453.9,4450.6,0.01436224]
[1758030342240,0.01,4453.9,4451.7,16.15983227]
[1758030342391,0.792,4453.7,4451.5,0.463]
[1758030342592,0.792,4453.5,4450.7,0.9217]
[1758030342816,0.792,4453.1,4450.6,0.01436224]
[1758030342993,0.792,4452.9,4450.6,0.01436224]
[1758030343192,0.792,4452.7,4450.6,0.01436224]
[1758030343394,0.02807222,4452.8,4450.6,0.01436224]
[1758030343395,0.22465038,4451.4,4450.6,0.01436224]
[1758030343623,0.22465851,4451.2,4450.6,0.01436224]
[1758030343825,0.02808168,4451.3,4450.6,0.01436224]
[1758030344151,0.22465851,4451.2,4450.6,0.01436224]
[1758030344692,0.02807663,4452.1,4450.6,0.01436224]
[1758030344996,1.2221,4452.0,4450.6,0.01436224]
[1758030345189,1.01665851,4451.2,4450.6,0.01436224]
[1758030345532,0.82008231,4451.2,4450.6,0.01436224]
[1758030345844,0.82008231,4451.2,4448.9,0.463]
[1758030345845,0.792,4450.8,4443.3,4.58228321]
[1758030346126,0.792,4449.0,4445.7,2.24933209]
[1758030346332,0.2247595,4449.2,4445.7,2.24933209]
[1758030346333,0.02809683,4448.9,4445.8,2.24928562]
[1758030346539,3.792,4447.6,4445.7,0.0008]
[1758030346691,3.0,4446.8,4445.0,2.41563361]
[1758030346895,0.792,4446.6,4445.0,2.41563361]
[1758030347160,0.792,4446.4,4445.0,2.41563361]
[1758030347452,0.6670761,4446.7,4444.1,0.01]
[1758030347453,0.22491621,4446.1,4444.1,0.01]
[1758030347593,0.02811515,4446.0,4444.1,0.01]
[1758030347794,0.02811515,4446.0,4441.0,0.47625]
[1758030347795,0.61071889,4446.0,4441.0,0.47625]
[1758030347993,3.0,4445.2,4441.4,0.4587]
[1758030348193,0.45822085,4445.1,4441.4,0.4587]
[1758030348423,0.45822085,4445.1,4441.0,0.01755]
[1758030348424,0.4301,4445.0,4442.1,14.96]
[1758030348610,0.45822211,4444.9,4442.1,14.96]
[1758030348793,0.4301,4444.8,4442.1,14.96]
[1758030348995,0.58260374,4444.6,4442.1,14.96]
[1758030349196,1.58260374,4444.1,4442.1,14.96]
[1758030349451,1.58260374,4444.1,4442.1,13.83298547]
[1758030349452,1.0,4443.6,4442.1,13.83298547]
[1758030349594,13.38585185,4443.1,4442.1,13.35998547]
[1758030349812,1.0,4442.3,4442.1,13.35998547]
[1758030349990,7.466995,4442.2,4442.1,5.6597646]
[1758030350192,3.45971581,4442.2,4442.1,5.6597646]
[1758030350420,3.0,4442.2,4442.1,5.6597646]
[1758030350634,6.9833,4442.2,4442.1,5.6597646]
[1758030350822,0.11773561,4442.1,4442.0,0.58688848]
[1758030351022,0.11773561,4442.1,4441.0,0.01755]
[1758030351023,6.18724345,4442.1,4441.0,0.01755]
[1758030351336,3.0,4441.9,4441.0,0.01755]
[1758030351550,0.02814174,4441.8,4441.0,0.01755]
[1758030351744,0.11773561,4442.1,4441.0,0.01755]
[1758030351745,0.01442232,4442.1,4441.2,0.463]
[1758030352039,0.02413371,4444.5,4441.3,0.48121593]
[1758030352246,0.01,4444.9,4441.5,3.0]
[1758030352247,0.02413371,4444.7,4441.5,3.0]
[1758030352544,0.31668845,4447.6,4443.8,2.25032205]
[1758030352740,0.35282966,4448.5,4441.6,0.9217]
[1758030352906,0.35282966,4448.5,4444.3,2.25004186]
[1758030353110,0.35282966,4448.5,4444.5,3.0]
[1758030353354,0.35282966,4448.5,4444.6,0.94419921]
[1758030353501,0.35282966,4448.5,4444.7,5.24987063]
[1758030353700,0.01,4448.4,4444.8,0.9441982]
[1758030354015,0.01,4448.4,4445.6,14.5]
[1758030354214,0.01,4448.9,4445.7,3.94419364]
[1758030354540,0.11751783,4449.7,4445.7,0.9217]
[1758030354854,0.01,4449.9,4445.8,15.4459]
[1758030354997,0.4072,4449.7,4445.9,0.9459]
[1758030355349,0.4272,4449.6,4446.0,0.9459]
[1758030355501,0.4272,4449.6,4443.1,0.01]
[1758030355502,0.4272,4449.5,4445.2,0.4815]
[1758030355701,0.4272,4449.5,4443.1,0.01]
[1758030355702,1.0,4448.4,4444.2,0.4815]
[1758030355935,0.4272,4448.3,4445.1,0.01]
[1758030356157,7.372229,4448.2,4445.1,0.01]
[1758030356362,3.62519704,4448.1,4445.1,0.01]
[1758030356534,9.26069204,4448.0,4445.1,0.01]
[1758030356864,3.0,4447.8,4445.1,0.0108]
[1758030357067,2.69659104,4447.7,4445.1,0.0108]
[1758030357365,0.19799704,4447.6,4447.5,0.00130881]
[1758030357580,3.0,4447.6,4447.5,0.00130881]
[1758030357739,3.60519704,4447.6,4447.5,0.00130881]
[1758030357923,3.19799704,4447.6,4447.5,0.00130881]
[1758030358129,0.4072,4448.6,4447.5,0.00130881]
[1758030358354,0.4072,4449.4,4447.5,0.00130881]
[1758030358573,0.12,4449.8,4447.5,0.48970881]
[1758030359072,0.12,4449.8,4445.1,0.0108]
[1758030359073,0.01,4447.9,4445.1,0.0108]
[1758030359375,0.792,4448.3,4445.8,0.4884]
[1758030359737,0.792,4449.3,4445.8,0.4884]
[1758030359925,0.01,4448.9,4445.8,0.4884]
[1758030360272,0.01,4448.9,4445.9,0.02249263]
[1758030360573,0.12,4449.8,4446.6,14.5]
[1758030360726,0.12,4449.8,4446.7,3.51088858]
[1758030361077,0.002,4452.1,4447.1,11.02092893]
[1758030361366,0.002,4452.1,4450.6,2.24688093]
[1758030361367,0.0092,4451.9,4450.6,2.24688093]
[1758030361527,0.0092,4451.9,4449.6,3.0]
[1758030361726,0.12,4452.8,4449.7,0.02247342]
[1758030362079,0.12,4452.8,4451.3,2.24652522]
[1758030362382,0.12,4452.8,4449.7,0.02247342]
[1758030362383,0.002,4454.4,4451.4,15.44446484]
[1758030362585,0.002,4454.4,4452.2,2.24606507]
[1758030362802,0.002,4454.4,4451.8,2.24627141]
[1758030362930,0.002,4454.4,4451.6,0.922]
[1758030363131,0.002,4454.4,4451.7,2.24633286]
[1758030363329,0.002,4454.4,4452.9,14.5]
[1758030363530,0.002,4454.4,4453.0,0.02245677]
[1758030363731,0.002,4454.4,4453.1,0.922]
[1758030364033,0.002,4454.4,4452.4,0.4884]
[1758030364251,0.002,4454.4,4451.4,0.4884]
[1758030364252,0.3648,4454.4,4451.4,0.4884]
[1758030364567,0.792,4454.3,4451.4,0.4884]
[1758030364766,0.792,4454.3,4451.5,0.4336]
[1758030365252,0.3628,4454.2,4451.5,0.4336]
[1758030365589,0.792,4454.1,4451.4,0.4884]
[1758030365726,0.792,4454.1,4451.1,0.01]
[1758030365727,3.792,4453.9,4451.1,0.01]
[1758030365931,0.792,4453.7,4452.1,0.01]
[1758030366167,0.792,4453.5,4451.1,0.01]
[1758030366367,0.99117858,4453.8,4451.1,0.01]
[1758030366574,0.35222376,4453.5,4451.1,0.01]
[1758030366774,0.35222376,4453.5,4450.1,0.01]
[1758030366775,0.792,4453.2,4450.1,0.01]
[1758030366976,0.792,4453.0,4451.1,0.0008]
[1758030367506,0.002,4454.4,4451.1,0.0008]
[1758030367507,0.8051,4452.9,4451.1,0.0008]
[1758030367683,0.792,4452.8,4451.1,0.0008]
[1758030367853,0.35225945,4453.5,4451.1,0.0008]
[1758030367854,0.31864709,4453.3,4451.1,0.0008]
[1758030368053,0.56197858,4453.9,4451.2,0.922]
[1758030368248,0.78578923,4454.9,4451.1,0.0008]
[1758030368249,3.670552,4453.8,4451.1,0.0008]
[1758030368509,0.3522874,4452.8,4451.1,0.0008]
[1758030368809,0.792,4453.6,4451.1,0.0008]
[1758030369152,0.01,4453.9,4451.1,0.4344]
[1758030369153,0.792,4453.4,4451.1,0.4344]
[1758030369492,0.01,4452.9,4451.2,0.4336]
[1758030369796,0.01,4452.9,4451.1,0.0008]
[1758030370147,0.01,4452.9,4451.2,0.4884]
[1758030370354,0.01,4452.9,4451.3,0.94446534]
[1758030370591,0.01,4452.9,4451.4,0.31918979]
[1758030370751,0.01,4452.9,4451.4,0.922]
[1758030371216,0.01,4452.9,4451.1,0.0008]
[1758030371497,0.884,4452.8,4451.1,0.0008]
[1758030371649,0.01,4452.9,4451.2,0.4336]
[1758030373202,0.792,4452.7,4451.1,0.0008]
[1758030373509,0.56613,4452.6,4451.1,0.0008]
[1758030373804,0.12443,4452.6,4451.1,0.0008]
[1758030374113,0.01,4452.9,4451.2,0.4336]
[1758030374273,0.01,4453.9,4451.4,0.792]
[1758030374599,0.01,4453.9,4451.6,3.792]
[1758030374799,0.01,4453.9,4451.4,0.4336]
[1758030375311,0.01,4453.9,4451.7,2.24633286]
[1758030375496,0.01,4453.9,4451.9,2.24623194]
[1758030375702,0.01,4453.9,4452.5,2.24591442]
[1758030375869,0.01,4453.9,4452.0,3.0]
[1758030376069,0.01,4453.9,4452.1,3.0]
[1758030376313,0.01,4453.9,4452.2,0.0224608]
[1758030376485,0.01,4453.9,4452.3,0.922]
[1758030376816,0.01,4453.9,4452.4,0.94445979]
[1758030376973,0.01,4453.9,4452.5,0.922]
[1758030377496,0.012,4453.9,4452.5,0.4336]
[1758030377884,0.012,4453.9,4452.6,0.4884]
[1758030378406,0.012,4453.9,4452.7,2.7018631]
[1758030378608,0.012,4453.9,4452.8,0.31902631]
[1758030378774,0.012,4453.9,4453.2,2.24557542]
[1758030378977,0.012,4453.9,4452.8,0.922]
[1758030379519,0.012,4453.9,4452.4,0.0008]
[1758030380077,0.012,4453.9,4452.5,0.922]
[1758030380512,0.012,4453.9,4452.6,0.94445878]
[1758030380696,0.012,4453.9,4452.7,0.94445828]
[1758030381026,0.012,4453.9,4452.8,0.922]
[1758030381313,0.012,4453.9,4452.5,0.4336]
[1758030381532,0.010876,4453.9,4452.6,0.4884]
[1758030381905,0.010876,4453.9,4452.4,0.0008]
[1758030382106,0.112,4452.5,4452.4,0.0008]
[1758030382819,0.19961481,4452.5,4452.4,0.0008]
[1758030382990,0.19961481,4453.8,4452.4,0.4892]
[1758030383201,0.792,4453.6,4452.4,0.0008]
[1758030383393,0.792,4453.4,4452.4,0.0008]
[1758030383594,0.792,4453.2,4452.4,0.0008]
[1758030383925,0.792,4453.0,4452.4,0.0008]
[1758030384099,0.19961481,4452.9,4452.4,0.0008]
[1758030384296,0.19961481,4452.8,4452.4,0.0008]
[1758030384497,0.19961481,4452.7,4452.4,0.0008]
[1758030384821,0.19961481,4452.6,4452.5,0.9266]
[1758030385026,0.19961481,4452.6,4452.4,0.0008]
[1758030385226,0.19961481,4452.5,4452.4,0.0008]
[1758030385525,0.19961481,4452.5,4452.4,0.9274]
[1758030385830,0.4537,4454.4,4452.4,0.9274]
[1758030385831,0.19961481,4453.8,4452.4,0.9274]
[1758030386029,0.19961481,4453.7,4452.4,0.9274]
[1758030386200,0.19961481,4453.6,4452.4,0.9274]
[1758030386401,0.19961481,4453.5,4452.5,0.02245929]
[1758030386603,0.002,4454.4,4452.4,0.4707]
[1758030386604,0.19881481,4453.4,4452.4,0.4707]
[1758030386815,0.792,4453.4,4452.4,0.0008]
[1758030387012,0.792,4453.2,4452.4,0.0008]
[1758030387325,0.16788,4453.3,4452.4,0.0008]
[1758030387527,0.58550628,4453.9,4452.4,0.0008]
[1758030387824,0.010876,4453.9,4452.4,0.0008]
[1758030388394,0.58550628,4453.9,4452.4,0.02325979]
[1758030388589,0.010876,4453.9,4452.5,0.9266]
[1758030388800,0.010876,4453.9,4452.6,0.02245878]
[1758030389003,0.010876,4453.9,4452.7,0.9266]
[1758030389229,0.010876,4453.9,4452.8,0.9266]
[1758030389432,0.010876,4453.9,4452.9,0.9266]
[1758030389616,0.010876,4453.9,4453.0,0.9266]
[1758030389929,0.010876,4453.9,4453.2,2.24553391]
[1758030390130,0.010876,4453.9,4453.3,1.26851427]
[1758030390331,0.010876,4453.9,4453.3,0.47915525]
[1758030390559,0.010876,4453.9,4453.4,12.92527246]
[1758030390699,0.010876,4453.9,4453.6,2.24537452]
[1758030390901,0.002,4454.4,4454.3,2.24502166]
[1758030391149,0.002,4454.4,4453.7,0.9266]
[1758030391945,0.002,4454.4,4453.1,0.4699]
[1758030391946,0.57663028,4454.4,4453.1,0.4699]
[1758030392145,0.002,4454.4,4453.2,0.47915576]
[1758030392358,0.002,4454.4,4453.3,0.4699]
[1758030392506,0.112,4454.3,4453.6,2.3573627]
[1758030392711,0.002,4454.4,4453.7,0.02245324]
[1758030393028,0.57463028,4454.1,4452.6,0.4567]
[1758030393228,0.57663028,4454.4,4452.6,0.4567]
[1758030393456,0.002,4454.4,4452.7,0.4699]
[1758030394150,0.57463028,4454.3,4452.7,0.4699]
[1758030394355,0.18099484,4454.3,4452.7,0.4699]
[1758030394640,0.002,4454.4,4452.8,0.4567]
[1758030395014,0.57463028,4454.2,4452.7,0.4699]
[1758030395217,0.57463028,4454.2,4452.5,0.0008]
[1758030395218,0.57463028,4453.3,4452.5,0.0008]
[1758030395407,0.57463028,4453.1,4452.5,0.0008]
[1758030395803,0.57463028,4453.2,4452.5,0.0008]
[1758030396012,0.57463028,4453.3,4452.5,0.0008]
[1758030396229,0.57463028,4453.5,4452.5,0.0008]
[1758030396521,1.0321592,4453.6,4452.5,0.0008]
[1758030397040,1.15450037,4453.8,4452.5,0.0008]
[1758030397241,1.16374345,4454.4,4452.6,0.9266]
[1758030397242,0.12234117,4454.0,4452.6,0.9266]
[1758030397418,0.12434117,4454.4,4452.9,2.24572332]
[1758030397634,0.002,4454.4,4453.0,1.24383233]
[1758030397834,0.002,4454.4,4453.1,0.9266]
[1758030398456,0.002,4454.4,4453.2,0.02245576]
[1758030398658,0.20409226,4454.3,4453.1,0.9266]
[1758030398824,0.20409226,4454.2,4452.5,0.0008]
[1758030399025,0.57463028,4453.9,4452.5,0.0008]
[1758030399235,0.57463028,4453.7,4452.5,0.0008]
[1758030399424,0.66162118,4453.6,4452.5,0.0008]
[1758030399625,0.20409226,4453.5,4452.6,0.4699]
[1758030399825,0.20409226,4453.4,4452.7,0.4567]
[1758030400126,0.20409226,4453.3,4452.8,0.4699]
[1758030400349,0.20409226,4453.2,4453.1,2.24562664]
[1758030400699,0.20409226,4453.2,4453.1,3.49169503]
[1758030400843,0.20409226,4453.2,4453.1,1.24606839]
[1758030401045,0.20409226,4453.2,4453.1,3.17222664]
[1758030401310,0.20409226,4453.2,4452.6,0.0008]
[1758030401430,0.20409226,4453.1,4452.6,0.0008]
[1758030401759,0.20409226,4453.0,4452.6,0.0008]
[1758030401963,0.20413157,4452.9,4452.6,0.0008]
[1758030402129,0.20413157,4452.8,4452.6,0.0008]
[1758030402329,0.66166049,4452.7,4451.4,1.12063359]
[1758030402575,1.02455602,4452.6,4451.4,1.12063359]
[1758030402743,0.20413157,4452.5,4451.4,1.12063359]
[1758030402943,0.82042445,4452.6,4451.4,1.12063359]
[1758030402944,0.20413157,4452.4,4451.4,1.12063359]
[1758030403143,0.4516,4453.2,4451.4,1.12063359]
[1758030403144,0.20413157,4452.3,4451.4,1.12063359]
[1758030403380,0.12250544,4453.4,4452.2,0.9266]
[1758030403686,0.20432125,4453.3,4452.3,0.9266]
[1758030403845,0.20432125,4453.2,4452.3,0.9266]
[1758030404055,0.20432125,4453.1,4452.4,0.02245979]
[1758030404264,0.20432125,4453.0,4452.3,0.9266]
[1758030404578,0.20432125,4452.9,4452.4,0.02245979]
[1758030404886,0.12250544,4453.9,4452.5,0.9266]
[1758030404887,0.20432125,4452.8,4452.5,0.9266]
[1758030405104,0.20432125,4452.7,4452.6,0.9266]
[1758030405307,0.002,4454.4,4452.6,0.9266]
[1758030405600,0.002,4454.4,4452.7,0.9266]
[1758030405784,0.002,4454.4,4453.0,11.99867246]
[1758030406100,0.002,4454.4,4453.2,2.24557621]
[1758030406285,0.002,4454.4,4453.1,1.37471302]
[1758030406601,0.002,4454.4,4453.2,0.4699]
[1758030406798,0.002,4454.4,4452.8,0.4567]
[1758030406983,0.002,4454.4,4452.9,0.49235727]
[1758030407393,0.002,4454.4,4453.0,0.4567]
[1758030408153,0.002,4454.4,4453.1,0.49235626]
[1758030408421,0.002,4454.4,4453.1,0.4699]
[1758030408742,0.002,4454.4,4453.1,2.71551737]
[1758030408881,0.002,4454.4,4453.2,0.02245576]
[1758030409207,0.002,4454.4,4453.1,0.4699]
[1758030409408,0.002,4454.4,4452.5,1.726]
[1758030409570,0.002,4454.4,4452.4,0.4699]
[1758030409571,0.4516,4454.3,4452.4,0.4699]
[1758030409765,0.58800948,4453.8,4452.1,0.01]
[1758030410008,0.58800948,4453.7,4452.1,0.0108]
[1758030410211,0.58800948,4453.8,4452.1,0.0108]
[1758030410409,0.58800948,4453.9,4452.1,0.0108]
[1758030410723,0.58800948,4453.8,4452.1,0.0108]
[1758030411086,0.11621557,4453.7,4452.1,0.0108]
[1758030411330,0.11621557,4453.7,4452.2,0.4699]
[1758030411627,0.11621557,4453.7,4452.1,0.0108]
[1758030411628,0.58800948,4453.4,4452.1,0.0108]
[1758030411920,0.58800948,4453.1,4452.1,0.0108]
[1758030412068,3.58800948,4452.9,4452.2,1.17238171]
[1758030412274,0.58800948,4452.6,4452.2,1.17238171]
[1758030412469,0.78325012,4452.4,4451.4,1.17226922]
[1758030412713,0.78325012,4452.4,4452.3,2.6569]
[1758030413011,0.78325012,4452.4,4450.9,0.001]
[1758030413012,6.682,4452.4,4450.9,0.001]
[1758030413197,0.78325012,4452.2,4450.9,0.001]
[1758030413409,0.78431893,4452.2,4451.1,0.000618]
[1758030413612,0.112,4451.3,4451.1,0.000618]
[1758030413921,15.866,4451.2,4451.1,0.000618]
[1758030414225,16.65031893,4451.2,4451.1,0.000618]
[1758030414425,17.59970552,4451.2,4451.1,0.000618]
[1758030414574,12.64770552,4451.2,4451.1,0.000618]
[1758030415009,17.59770552,4451.2,4451.1,0.000618]
[1758030415309,17.59470552,4451.2,4451.1,0.000618]
[1758030415611,17.9291766,4451.2,4450.1,1e-08]
[1758030415906,2.138,4451.0,4449.4,1e-08]
[1758030416080,0.792,4450.8,4449.4,1e-08]
[1758030416419,1.11879001,4450.8,4449.1,1e-08]
[1758030416621,0.792,4450.6,4449.1,1e-08]
[1758030416995,0.792,4450.3,4449.1,1e-08]
[1758030417206,0.792,4450.1,4449.1,1e-08]
[1758030417396,0.792,4449.9,4449.1,1e-08]
[1758030417727,0.20281087,4450.0,4449.1,1e-08]
[1758030418197,1.727,4450.1,4449.1,1e-08]
[1758030418587,1.727,4451.0,4449.2,1.20723873]
[1758030418899,1.727,4451.0,4449.3,3.18609546]
[1758030419099,0.00114033,4449.9,4449.4,0.9386]
[1758030419302,0.00114033,4449.9,4449.5,0.9386]
[1758030419501,0.00114033,4449.9,4449.6,0.9386]
[1758030419705,0.00114033,4449.9,4449.8,2.24729201]
[1758030419902,0.00114033,4449.9,4449.8,2.96331816]
[1758030420130,0.00114033,4449.9,4449.8,15.90139062]
[1758030420334,0.01,4451.9,4450.6,11.99867246]
[1758030420532,1.727,4453.8,4451.4,11.99867246]
[1758030420775,0.01,4453.9,4451.5,1.74946433]
[1758030421067,0.01,4453.9,4453.5,2.24542494]
[1758030421211,0.12,4455.8,4453.6,2.24537452]
[1758030421413,0.12,4455.8,4454.2,11.99867246]
[1758030421614,0.12,4455.8,4455.6,2.24432842]
[1758030422033,0.12,4455.8,4455.2,1.727]
[1758030422034,0.01123,4456.1,4455.7,3.18288907]
[1758030422371,0.01,4456.9,4456.8,2.24376234]
[1758030422516,0.12,4458.8,4456.8,13.72567246]
[1758030422720,0.12,4458.8,4456.9,0.9386]
[1758030422921,0.1172579,4458.7,4456.9,0.96103711]
[1758030423251,0.12,4458.8,4456.9,0.96103711]
[1758030423252,0.12,4458.8,4457.0,2.24362891]
[1758030423421,0.12,4458.8,4457.1,1.69079014]
[1758030423620,0.12,4458.8,4456.8,1.727]
[1758030423621,0.12,4458.8,4457.0,0.4668]
[1758030423851,0.12,4458.8,4457.1,0.02243611]
[1758030424237,0.12,4458.8,4457.0,0.9386]
[1758030424424,0.112,4457.0,4455.5,0.4668]
[1758030424626,1.737,4457.9,4455.6,0.4718]
[1758030424942,1.737,4457.9,4455.7,0.49100477]
[1758030424943,0.61982,4457.8,4455.7,0.49100477]
[1758030425266,0.61982,4457.8,4455.5,0.4668]
[1758030425478,5.57482,4457.8,4455.6,0.02244366]
[1758030425777,5.57482,4457.8,4455.1,0.01]
[1758030425778,0.792,4457.6,4455.1,0.01]
[1758030426127,0.792,4457.4,4455.1,0.01]
[1758030426326,0.792,4457.2,4455.1,0.01]
[1758030426563,3.792,4457.0,4455.1,0.01]
[1758030426764,3.792,4456.8,4455.1,0.01]
[1758030427184,0.70295928,4456.7,4455.1,0.01]
[1758030427384,3.0,4456.5,4455.1,0.01]
[1758030427531,0.70295928,4456.7,4455.1,0.01]
[1758030427532,0.86499593,4456.4,4455.1,0.01]
[1758030427731,3.0,4456.6,4455.1,0.01]
[1758030428238,0.792,4456.3,4455.1,0.01]
[1758030428473,0.20172812,4456.3,4455.1,0.01]
[1758030428684,0.5012,4456.2,4455.1,0.01]
[1758030428970,0.792,4456.0,4455.1,0.01]
[1758030429143,0.792,4455.8,4455.1,0.01]
[1758030429552,0.5012,4455.7,4455.1,0.01]
[1758030429767,0.792,4455.6,4454.1,0.01]
[1758030430274,0.5012,4455.5,4454.1,0.0108]
[1758030430434,4.93,4455.4,4454.1,0.0108]
[1758030430629,0.12932,4455.9,4454.1,0.4776]
[1758030430856,2.2272,4456.6,4454.1,0.4776]
[1758030431061,0.22272,4456.5,4454.1,0.4776]
[1758030431588,0.22272,4456.5,4454.2,0.49425072]
[1758030431748,0.22272,4456.5,4454.3,0.48925021]
[1758030431948,0.22272,4456.5,4454.3,0.4668]
[1758030432243,1.726,4456.6,4454.4,0.4718]
[1758030432583,1.726,4456.6,4454.5,0.4892492]
[1758030432769,1.726,4456.6,4454.6,0.4718]
[1758030433064,0.01,4456.9,4454.7,2.1928]
[1758030433488,0.01,4456.9,4454.8,0.9386]
[1758030433632,0.01,4456.9,4454.9,1.46632725]
[1758030433833,0.01,4456.9,4454.9,2.40492725]
[1758030434067,0.01183341,4457.2,4455.0,0.9386]
[1758030434273,1.85532,4457.3,4455.0,0.9386]
[1758030434570,0.112,4455.2,4455.0,0.9386]
[1758030434775,0.20177364,4455.1,4454.3,2.1928]
[1758030434990,0.20177364,4455.0,4454.4,0.22036]
[1758030435194,0.20177364,4454.9,4453.6,0.4668]
[1758030435397,0.44,4455.9,4453.6,0.4668]
[1758030435398,0.20177364,4454.8,4453.6,0.4668]
[1758030435607,0.20177364,4454.7,4453.8,0.4718]
[1758030435897,0.20177364,4454.6,4453.8,0.4718]
[1758030436058,0.20177364,4454.5,4454.0,0.4668]
[1758030436259,0.20177364,4454.4,4454.2,0.9386]
[1758030436476,0.20177364,4454.3,4454.2,0.4718]
[1758030436776,0.19177364,4454.3,4453.4,5.3678]
[1758030437098,1.7252,4455.4,4453.5,1.17618]
[1758030437800,1.726,4456.1,4453.6,0.9386]
[1758030438104,2.2272,4456.0,4453.6,0.9386]
[1758030438307,1.726,4455.9,4453.6,0.9386]
[1758030438459,1.726,4455.9,4453.7,0.48925324]
[1758030438785,0.725032,4457.2,4453.7,0.9386]
[1758030438991,0.002,4457.8,4455.8,11.99867246]
[1758030439205,0.002,4457.8,4455.9,4.14386725]
[1758030439206,0.012,4456.9,4455.9,4.14386725]
[1758030439363,0.012,4456.9,4456.0,0.02244165]
[1758030439572,0.012,4456.9,4456.1,5.8256]
[1758030439875,0.002,4457.8,4456.2,0.9386]
[1758030440075,0.002,4457.8,4456.4,11.99867246]
[1758030440276,0.002,4457.8,4456.5,1.95727126]
[1758030440466,0.002,4457.8,4456.6,4.888]
[1758030440666,0.002,4457.8,4456.5,0.9394]
[1758030440866,0.002,4457.8,4456.6,4.888]
[1758030441283,0.002,4457.8,4456.7,0.9386]
[1758030441482,0.002,4457.8,4456.8,4.887]
[1758030441699,0.002,4457.8,4456.9,0.58256]
[1758030442008,0.002,4457.8,4457.0,4.883]
[1758030442206,0.002,4457.8,4457.1,1.74843611]
[1758030442407,0.002,4457.8,4457.1,2.6646]
[1758030442583,0.002,4457.8,4457.2,0.9386]
[1758030442779,0.002,4457.8,4457.3,0.7771951]
[1758030443004,0.002,4457.8,4457.3,1.7157951]
[1758030443310,0.002,4457.8,4457.3,1.69336]
[1758030443782,0.002,4457.8,4457.3,5.8076]
[1758030444414,0.002,4457.8,4457.3,0.4668]
[1758030444613,0.002,4457.8,4457.1,1.726]
[1758030444915,0.002,4457.8,4457.2,0.0224356]
[1758030445097,0.112,4457.3,4457.2,0.0224356]
[1758030445477,0.112,4457.3,4457.2,0.4717]
[1758030445782,0.112,4457.6,4457.2,1.17717]
[1758030445981,0.002,4457.8,4457.1,1.726]
[1758030446494,0.012,4457.8,4457.1,1.726]
[1758030447008,0.002,4457.8,4457.2,0.9417]
[1758030447210,0.002,4457.8,4457.3,0.0224351]
[1758030447433,0.002,4457.8,4457.3,0.9417]
[1758030447734,0.002,4457.8,4457.3,5.8071351]
[1758030447873,0.002,4457.8,4457.3,6.53801351]
[1758030448693,0.2052085,4457.4,4457.3,6.53801351]
[1758030449476,0.1455357,4457.4,4457.3,7.33001351]
[1758030450085,0.1455357,4457.4,4457.3,7.31001351]
[1758030450296,0.1455357,4457.4,4457.3,7.76176941]
[1758030450687,0.1455357,4457.4,4457.3,7.76256941]
[1758030450890,0.1455357,4457.4,4457.3,2.93956941]
[1758030451206,0.1455357,4457.4,4457.3,7.76156941]
[1758030452022,0.002,4457.8,4457.4,1.74075694]
[1758030452184,0.002,4457.8,4457.4,2.70489154]
[1758030452523,0.002,4457.8,4457.6,0.792]
[1758030452732,0.002,4457.8,4457.7,4.804]
[1758030453040,0.002,4457.8,4457.7,5.7457]
[1758030453250,0.002,4457.8,4457.7,6.5377]
[1758030453393,0.002,4457.8,4457.3,0.4525559]
[1758030453394,0.4637,4457.8,4457.3,0.0008]
[1758030453590,0.4637,4457.8,4456.4,0.4717]
[1758030453591,0.002,4457.8,4456.4,0.4717]
[1758030453793,0.4617,4457.7,4456.5,5.02167]
[1758030454647,0.002,4457.4,4456.6,4.82343863]
[1758030454806,0.002,4457.4,4456.5,1.94467]
[1758030454991,0.002,4457.4,4456.7,4.794]
[1758030455340,0.002,4457.4,4456.7,4.42889164]
[1758030455488,0.002,4457.4,4456.8,0.02243762]
[1758030455908,0.002,4457.4,4456.8,0.112]
[1758030456503,0.002,4457.4,4456.8,0.13443762]